[Event "*** SCC Grand Prix: Titled Tuesday Blitz"]
[Site "Chess.com"]
[Date "2020.07.14"]
[Round "8"]
[White "zajka-molotok"]
[Black "m_ezat"]
[Result "0-1"]
[WhiteElo "2420"]
[BlackElo "2552"]
[TimeControl "180+1"]
[EndTime "11:37:14 PDT"]
[Termination "m_ezat won on time"]

1. e4 {[%clk 0:03:00.9]} 1... c6 {[%clk 0:03:00]} 2. d4 {[%clk 0:02:59.5]} 2...
d5 {[%clk 0:03:00.4]} 3. exd5 {[%clk 0:02:59.3]} 3... cxd5 {[%clk 0:03:00.1]} 4.
Bd3 {[%clk 0:02:59.4]} 4... Nc6 {[%clk 0:03:00.1]} 5. c3 {[%clk 0:02:58.7]} 5...
Qc7 {[%clk 0:03:00.7]} 6. Nf3 {[%clk 0:02:47.1]} 6... Bg4 {[%clk 0:03:00.8]} 7.
Nbd2 {[%clk 0:02:43.4]} 7... e6 {[%clk 0:03:01.1]} 8. h3 {[%clk 0:02:42.6]} 8...
Bh5 {[%clk 0:03:00.8]} 9. O-O {[%clk 0:02:39.2]} 9... Nf6 {[%clk 0:03:00.8]} 10.
Re1 {[%clk 0:02:37.7]} 10... Be7 {[%clk 0:03:00.5]} 11. Nf1 {[%clk 0:02:33.1]}
11... O-O {[%clk 0:03:00.1]} 12. Ng3 {[%clk 0:02:32.7]} 12... Bg6 {[%clk
0:03:00]} 13. Ne5 {[%clk 0:02:31.5]} 13... Nxe5 {[%clk 0:02:59.2]} 14. dxe5
{[%clk 0:02:23.1]} 14... Nd7 {[%clk 0:02:59.3]} 15. f4 {[%clk 0:02:09.7]} 15...
Bh4 {[%clk 0:02:54.3]} 16. Bxg6 {[%clk 0:01:54.7]} 16... hxg6 {[%clk 0:02:48.8]}
17. Qg4 {[%clk 0:01:52.6]} 17... Bxg3 {[%clk 0:02:48.5]} 18. Qxg3 {[%clk
0:01:53.3]} 18... Nc5 {[%clk 0:02:48.7]} 19. Be3 {[%clk 0:01:48.4]} 19... Ne4
{[%clk 0:02:48.4]} 20. Qf3 {[%clk 0:01:48.1]} 20... b5 {[%clk 0:02:42.1]} 21.
Rac1 {[%clk 0:01:45.5]} 21... a5 {[%clk 0:02:40.4]} 22. Bd4 {[%clk 0:01:35.7]}
22... Rfc8 {[%clk 0:02:26.5]} 23. b3 {[%clk 0:01:29.8]} 23... a4 {[%clk
0:02:22]} 24. c4 {[%clk 0:01:23.8]} 24... axb3 {[%clk 0:02:20.9]} 25. axb3
{[%clk 0:01:24.5]} 25... bxc4 {[%clk 0:02:19.4]} 26. bxc4 {[%clk 0:01:24]} 26...
Nd2 {[%clk 0:02:18.4]} 27. Qg4 {[%clk 0:01:11.3]} 27... Nb3 {[%clk 0:02:07]} 28.
Rcd1 {[%clk 0:00:57.2]} 28... Nxd4 {[%clk 0:02:05.4]} 29. Rxd4 {[%clk
0:00:58.1]} 29... Qb6 {[%clk 0:02:05.8]} 30. c5 {[%clk 0:00:45.9]} 30... Qxc5
{[%clk 0:01:57.4]} 31. Qd1 {[%clk 0:00:45.3]} 31... Ra2 {[%clk 0:01:45]} 32. Kh2
{[%clk 0:00:44.1]} 32... Qb6 {[%clk 0:01:39.3]} 33. Rd2 {[%clk 0:00:41.2]} 33...
Rxd2 {[%clk 0:01:35.6]} 34. Qxd2 {[%clk 0:00:42.1]} 34... Rc4 {[%clk 0:01:34.7]}
35. Ra1 {[%clk 0:00:39.3]} 35... Qb8 {[%clk 0:01:29.3]} 36. Qe3 {[%clk
0:00:33.2]} 36... Rb4 {[%clk 0:01:17.6]} 37. Qf3 {[%clk 0:00:27.4]} 37... g5
{[%clk 0:01:13.5]} 38. g3 {[%clk 0:00:11.6]} 38... gxf4 {[%clk 0:01:13.6]} 39.
gxf4 {[%clk 0:00:12.5]} 39... Rb2+ {[%clk 0:01:11.2]} 40. Kh1 {[%clk 0:00:12.5]}
40... Rb1+ {[%clk 0:00:53.7]} 41. Rxb1 {[%clk 0:00:12.4]} 41... Qxb1+ {[%clk
0:00:54.3]} 42. Kh2 {[%clk 0:00:12.7]} 42... Qc2+ {[%clk 0:00:52.6]} 43. Kg3
{[%clk 0:00:12.2]} 43... g6 {[%clk 0:00:52.4]} 44. Qa3 {[%clk 0:00:10.3]} 44...
Qc8 {[%clk 0:00:42.9]} 45. Qd6 {[%clk 0:00:09.4]} 45... Kg7 {[%clk 0:00:38.8]}
46. h4 {[%clk 0:00:08.2]} 46... Qc3+ {[%clk 0:00:37.1]} 47. Kg4 {[%clk
0:00:07.9]} 47... Qe1 {[%clk 0:00:30.2]} 48. Qd8 {[%clk 0:00:06.4]} 48... Qg1+
{[%clk 0:00:30.1]} 49. Kf3 {[%clk 0:00:06.2]} 49... Qh1+ {[%clk 0:00:29.8]} 50.
Kg3 {[%clk 0:00:02.8]} 50... Qg1+ {[%clk 0:00:29.6]} 51. Kf3 {[%clk 0:00:03]}
51... Qd1+ {[%clk 0:00:25.7]} 52. Kg3 {[%clk 0:00:02.8]} 52... Qh5 {[%clk
0:00:23.1]} 53. Qf6+ {[%clk 0:00:01.9]} 53... Kg8 {[%clk 0:00:23.7]} 54. Qd8+
{[%clk 0:00:02]} 54... Kh7 {[%clk 0:00:23.9]} 55. Qf6 {[%clk 0:00:01.2]} 55...
Qf5 {[%clk 0:00:23.4]} 56. Qe7 {[%clk 0:00:01.3]} 56... d4 {[%clk 0:00:22.4]}
0-1

[Event "*** SCC Grand Prix: Titled Tuesday Blitz"]
[Site "Chess.com"]
[Date "2020.07.14"]
[Round "8"]
[White "Larina_Marija"]
[Black "malakismayil"]
[Result "0-1"]
[WhiteElo "2103"]
[BlackElo "2254"]
[TimeControl "180+1"]
[EndTime "11:37:17 PDT"]
[Termination "malakismayil won by resignation"]

1. e4 {[%clk 0:03:00.7]} 1... e5 {[%clk 0:02:59.4]} 2. Nf3 {[%clk 0:03:00.4]}
2... Nc6 {[%clk 0:02:59.7]} 3. Nc3 {[%clk 0:02:58.7]} 3... Nf6 {[%clk
0:02:58.6]} 4. Bb5 {[%clk 0:02:58.5]} 4... d6 {[%clk 0:02:55.5]} 5. d4 {[%clk
0:02:58.1]} 5... exd4 {[%clk 0:02:55.1]} 6. Nxd4 {[%clk 0:02:58.2]} 6... Bd7
{[%clk 0:02:55.5]} 7. Bxc6 {[%clk 0:02:58.5]} 7... bxc6 {[%clk 0:02:56.4]} 8.
Qf3 {[%clk 0:02:58.9]} 8... c5 {[%clk 0:02:47.8]} 9. Nf5 {[%clk 0:02:58.3]} 9...
Bxf5 {[%clk 0:02:47.4]} 10. exf5 {[%clk 0:02:58.2]} 10... Be7 {[%clk 0:02:46.4]}
11. b3 {[%clk 0:02:57.3]} 11... O-O {[%clk 0:02:45.4]} 12. Bb2 {[%clk
0:02:57.7]} 12... d5 {[%clk 0:02:31.1]} 13. O-O-O {[%clk 0:02:57.8]} 13... d4
{[%clk 0:02:31.3]} 14. Ne4 {[%clk 0:02:32.7]} 14... Nxe4 {[%clk 0:02:01.3]} 15.
Qxe4 {[%clk 0:02:33.6]} 15... Bf6 {[%clk 0:02:01.1]} 16. g4 {[%clk 0:02:11.4]}
16... Qd6 {[%clk 0:01:49.1]} 17. c3 {[%clk 0:02:06.5]} 17... Qa6 {[%clk
0:01:44.5]} 18. cxd4 {[%clk 0:02:01.7]} 18... Qxa2 {[%clk 0:01:42.1]} 19. Kc2
{[%clk 0:01:03.5]} 19... Bxd4 {[%clk 0:01:34.8]} 20. Rxd4 {[%clk 0:01:01.9]}
20... Rfe8 {[%clk 0:01:06.7]} 21. Qf3 {[%clk 0:00:41.5]} 21... cxd4 {[%clk
0:00:40.2]} 22. Ra1 {[%clk 0:00:41]} 22... Qxa1 {[%clk 0:00:40.5]} 23. Bxa1
{[%clk 0:00:41.1]} 23... Rad8 {[%clk 0:00:41]} 24. Kd3 {[%clk 0:00:39.8]} 24...
c5 {[%clk 0:00:39.6]} 25. Bb2 {[%clk 0:00:39.3]} 25... Rb8 {[%clk 0:00:38.3]}
26. Kc2 {[%clk 0:00:36.6]} 26... Red8 {[%clk 0:00:34.6]} 27. Qd3 {[%clk
0:00:36.9]} 27... h6 {[%clk 0:00:17.9]} 28. Ba3 {[%clk 0:00:37]} 28... Rbc8
{[%clk 0:00:18.2]} 29. h4 {[%clk 0:00:31.2]} 29... Rd5 {[%clk 0:00:17.6]} 30. f4
{[%clk 0:00:29.4]} 30... Rcd8 {[%clk 0:00:15.5]} 31. g5 {[%clk 0:00:27.2]} 31...
h5 {[%clk 0:00:14.8]} 32. g6 {[%clk 0:00:26.3]} 32... fxg6 {[%clk 0:00:10.8]}
33. fxg6 {[%clk 0:00:26.2]} 33... Kh8 {[%clk 0:00:11.4]} 34. f5 {[%clk
0:00:25.9]} 34... a5 {[%clk 0:00:07.3]} 35. Kb2 {[%clk 0:00:23.1]} 35... Rf8
{[%clk 0:00:07]} 36. Qf3 {[%clk 0:00:21.9]} 36... Rdxf5 {[%clk 0:00:07]} 37. Qd1
{[%clk 0:00:17.6]} 37... Rf2+ {[%clk 0:00:07.1]} 38. Kb1 {[%clk 0:00:14.8]}
38... Rf1 {[%clk 0:00:07]} 39. Kc2 {[%clk 0:00:14.7]} 39... R8f2+ {[%clk
0:00:05.2]} 40. Qd2 {[%clk 0:00:14.5]} 40... Rxd2+ {[%clk 0:00:05]} 41. Kxd2
{[%clk 0:00:15.4]} 41... Rf5 {[%clk 0:00:05.6]} 42. Kd3 {[%clk 0:00:15.6]} 42...
Kg8 {[%clk 0:00:05.8]} 43. Bxc5 {[%clk 0:00:14.4]} 43... Rxc5 {[%clk 0:00:05.3]}
44. Kxd4 {[%clk 0:00:14.5]} 44... Rb5 {[%clk 0:00:05.9]} 45. Kc4 {[%clk
0:00:14.6]} 45... Rb4+ {[%clk 0:00:06.8]} 46. Kc3 {[%clk 0:00:14.7]} 46... Rxh4
{[%clk 0:00:07.7]} 47. b4 {[%clk 0:00:14.6]} 47... Rh3+ {[%clk 0:00:08.6]} 48.
Kc4 {[%clk 0:00:12.8]} 48... axb4 {[%clk 0:00:09.5]} 0-1

[Event "*** SCC Grand Prix: Titled Tuesday Blitz"]
[Site "Chess.com"]
[Date "2020.07.14"]
[Round "8"]
[White "VladimirBugayev"]
[Black "reniite"]
[Result "1-0"]
[WhiteElo "2100"]
[BlackElo "1903"]
[TimeControl "180+1"]
[EndTime "11:37:17 PDT"]
[Termination "VladimirBugayev won by checkmate"]

1. e4 {[%clk 0:03:00.9]} 1... c6 {[%clk 0:02:55.5]} 2. d4 {[%clk 0:02:59.7]}
2... d5 {[%clk 0:02:56.1]} 3. f3 {[%clk 0:03:00.2]} 3... Qb6 {[%clk 0:02:46.4]}
4. Qd3 {[%clk 0:02:44.3]} 4... e6 {[%clk 0:02:43.3]} 5. c3 {[%clk 0:02:39.7]}
5... c5 {[%clk 0:02:43]} 6. Ne2 {[%clk 0:02:26.3]} 6... Nf6 {[%clk 0:02:27.9]}
7. e5 {[%clk 0:02:25.6]} 7... Nfd7 {[%clk 0:02:24.3]} 8. f4 {[%clk 0:02:24.7]}
8... cxd4 {[%clk 0:02:12]} 9. cxd4 {[%clk 0:02:24.2]} 9... Nc6 {[%clk
0:02:05.9]} 10. a3 {[%clk 0:02:21.8]} 10... Na5 {[%clk 0:01:50.8]} 11. b4 {[%clk
0:02:20.8]} 11... Nc4 {[%clk 0:01:49.5]} 12. Nd2 {[%clk 0:02:17.3]} 12... Nxd2
{[%clk 0:01:35.2]} 13. Bxd2 {[%clk 0:02:17]} 13... a6 {[%clk 0:01:28.3]} 14. g4
{[%clk 0:01:44.9]} 14... Be7 {[%clk 0:01:27.6]} 15. Ng3 {[%clk 0:01:40.9]} 15...
Bh4 {[%clk 0:01:20.3]} 16. Be2 {[%clk 0:01:30.9]} 16... f6 {[%clk 0:00:56.9]}
17. O-O {[%clk 0:01:30]} 17... fxe5 {[%clk 0:00:54.5]} 18. fxe5 {[%clk
0:01:17.7]} 18... Nxe5 {[%clk 0:00:54.5]} 19. Qe3 {[%clk 0:01:13.9]} 19... Bxg3
{[%clk 0:00:45]} 20. hxg3 {[%clk 0:01:04.7]} 20... Ng6 {[%clk 0:00:43.1]} 21.
Rac1 {[%clk 0:00:57.1]} 21... Rf8 {[%clk 0:00:38.2]} 22. Bd3 {[%clk 0:00:57]}
22... Rxf1+ {[%clk 0:00:33]} 23. Rxf1 {[%clk 0:00:55]} 23... Nf8 {[%clk
0:00:33.5]} 24. Qf4 {[%clk 0:00:50.7]} 24... Nd7 {[%clk 0:00:17.4]} 25. Qf7+
{[%clk 0:00:47.4]} 25... Kd8 {[%clk 0:00:18]} 26. Qxg7 {[%clk 0:00:47.2]} 26...
Kc7 {[%clk 0:00:15.5]} 27. Bf4+ {[%clk 0:00:44.9]} 27... Kd8 {[%clk 0:00:13.8]}
28. Qg5+ {[%clk 0:00:42.8]} 28... Ke8 {[%clk 0:00:13.2]} 29. Be3 {[%clk
0:00:30.9]} 29... Nf8 {[%clk 0:00:13.2]} 30. Qg8 {[%clk 0:00:23.1]} 30... Qd6
{[%clk 0:00:12.2]} 31. Bxh7 {[%clk 0:00:23.5]} 31... Bd7 {[%clk 0:00:11.8]} 32.
Qf7+ {[%clk 0:00:20.4]} 32... Kd8 {[%clk 0:00:11.7]} 33. Qxf8+ {[%clk
0:00:20.6]} 33... Kc7 {[%clk 0:00:11.9]} 34. Qxd6+ {[%clk 0:00:19.1]} 34... Kxd6
{[%clk 0:00:12.3]} 35. Bf4+ {[%clk 0:00:19.4]} 35... Ke7 {[%clk 0:00:12.7]} 36.
Be5 {[%clk 0:00:19.2]} 36... Bb5 {[%clk 0:00:11.1]} 37. Rf4 {[%clk 0:00:17.1]}
37... Rc8 {[%clk 0:00:11.1]} 38. g5 {[%clk 0:00:16.9]} 38... Rc1+ {[%clk
0:00:11.1]} 39. Kf2 {[%clk 0:00:17]} 39... Rc2+ {[%clk 0:00:11.2]} 40. Ke1
{[%clk 0:00:17.2]} 40... Re2+ {[%clk 0:00:11.1]} 41. Kd1 {[%clk 0:00:17.7]}
41... Rg2 {[%clk 0:00:11.4]} 42. g6 {[%clk 0:00:17.5]} 42... Rg1+ {[%clk
0:00:10.5]} 43. Kd2 {[%clk 0:00:16.5]} 43... Rg2+ {[%clk 0:00:10.8]} 44. Ke1
{[%clk 0:00:15.2]} 44... Rg1+ {[%clk 0:00:09.2]} 45. Kf2 {[%clk 0:00:13.8]}
45... Rf1+ {[%clk 0:00:09.5]} 46. Kg2 {[%clk 0:00:14.3]} 46... Rxf4 {[%clk
0:00:02.6]} 47. gxf4 {[%clk 0:00:13.5]} 47... Be8 {[%clk 0:00:02.8]} 48. g7
{[%clk 0:00:13]} 48... Bf7 {[%clk 0:00:03.3]} 49. g8=Q {[%clk 0:00:12.2]} 49...
Bxg8 {[%clk 0:00:03.8]} 50. Bxg8 {[%clk 0:00:12.4]} 50... b6 {[%clk 0:00:04.5]}
51. Kg3 {[%clk 0:00:12]} 51... a5 {[%clk 0:00:04.9]} 52. bxa5 {[%clk 0:00:11.3]}
52... bxa5 {[%clk 0:00:05.5]} 53. a4 {[%clk 0:00:11.5]} 53... Kd7 {[%clk
0:00:05.1]} 54. Kg4 {[%clk 0:00:11.7]} 54... Ke7 {[%clk 0:00:06]} 55. Kg5 {[%clk
0:00:11.8]} 55... Kd7 {[%clk 0:00:06.9]} 56. Kf6 {[%clk 0:00:11.8]} 56... Ke8
{[%clk 0:00:07.1]} 57. Bxe6 {[%clk 0:00:12.3]} 57... Kf8 {[%clk 0:00:08]} 58.
Bxd5 {[%clk 0:00:12.8]} 58... Ke8 {[%clk 0:00:08.5]} 59. Bd6 {[%clk 0:00:10.3]}
59... Kd8 {[%clk 0:00:09.4]} 60. Bc6 {[%clk 0:00:10.2]} 60... Kc8 {[%clk
0:00:07]} 61. Ke6 {[%clk 0:00:10.7]} 61... Kd8 {[%clk 0:00:07.9]} 62. f5 {[%clk
0:00:11.1]} 62... Kc8 {[%clk 0:00:08.8]} 63. f6 {[%clk 0:00:11.7]} 63... Kd8
{[%clk 0:00:09.7]} 64. f7 {[%clk 0:00:12.3]} 64... Kc8 {[%clk 0:00:10.6]} 65.
f8=Q# {[%clk 0:00:12.5]} 1-0

[Event "*** SCC Grand Prix: Titled Tuesday Blitz"]
[Site "Chess.com"]
[Date "2020.07.14"]
[Round "8"]
[White "pavelalexandru07"]
[Black "Cocaino74"]
[Result "0-1"]
[WhiteElo "2143"]
[BlackElo "2317"]
[TimeControl "180+1"]
[EndTime "11:37:23 PDT"]
[Termination "Cocaino74 won on time"]

1. e4 {[%clk 0:03:00.9]} 1... c5 {[%clk 0:03:00.4]} 2. Nf3 {[%clk 0:03:00.4]}
2... Nc6 {[%clk 0:03:01.1]} 3. d4 {[%clk 0:03:00.6]} 3... cxd4 {[%clk 0:03:02]}
4. Nxd4 {[%clk 0:03:00.9]} 4... g6 {[%clk 0:03:02.8]} 5. c4 {[%clk 0:03:00.4]}
5... Bg7 {[%clk 0:03:03.4]} 6. Be3 {[%clk 0:03:00.9]} 6... Nf6 {[%clk
0:03:03.6]} 7. Nc3 {[%clk 0:03:01.1]} 7... d6 {[%clk 0:03:04.2]} 8. Be2 {[%clk
0:03:00.4]} 8... O-O {[%clk 0:03:04.6]} 9. O-O {[%clk 0:03:00]} 9... Bd7 {[%clk
0:03:05.1]} 10. Qd2 {[%clk 0:02:59.7]} 10... Nxd4 {[%clk 0:03:04.1]} 11. Bxd4
{[%clk 0:02:59.9]} 11... Bc6 {[%clk 0:03:04.8]} 12. f3 {[%clk 0:03:00.3]} 12...
a5 {[%clk 0:03:04.9]} 13. b3 {[%clk 0:02:53.5]} 13... Nd7 {[%clk 0:02:59.4]} 14.
Be3 {[%clk 0:02:53]} 14... a4 {[%clk 0:02:59.3]} 15. b4 {[%clk 0:02:37.5]} 15...
b6 {[%clk 0:02:58.1]} 16. a3 {[%clk 0:02:32.4]} 16... Qc7 {[%clk 0:02:50.8]} 17.
Rac1 {[%clk 0:02:30.8]} 17... Rfc8 {[%clk 0:02:50.5]} 18. Rfd1 {[%clk
0:02:30.1]} 18... Ne5 {[%clk 0:02:48.3]} 19. Qe1 {[%clk 0:02:06]} 19... h5
{[%clk 0:02:43.8]} 20. Qf2 {[%clk 0:02:04.5]} 20... Rab8 {[%clk 0:02:42.5]} 21.
Nd5 {[%clk 0:02:00.4]} 21... Bxd5 {[%clk 0:02:41.5]} 22. cxd5 {[%clk 0:02:00.9]}
22... Qd8 {[%clk 0:02:41.1]} 23. Rxc8 {[%clk 0:01:59]} 23... Qxc8 {[%clk
0:02:41.4]} 24. Bxb6 {[%clk 0:01:54.3]} 24... Nc4 {[%clk 0:02:38.8]} 25. Ba7
{[%clk 0:01:46.4]} 25... Rb7 {[%clk 0:02:34.5]} 26. Rc1 {[%clk 0:01:44.4]} 26...
Rc7 {[%clk 0:02:34.9]} 27. Bxc4 {[%clk 0:00:40.8]} 27... Rxc4 {[%clk 0:02:35.8]}
28. Rd1 {[%clk 0:00:36.2]} 28... Qb7 {[%clk 0:02:16.5]} 29. Be3 {[%clk
0:00:34.9]} 29... Rc3 {[%clk 0:02:14.8]} 30. Bc1 {[%clk 0:00:26.9]} 30... Qc7
{[%clk 0:02:12.5]} 31. Qd2 {[%clk 0:00:24.8]} 31... Rc2 {[%clk 0:02:12]} 32. Qe3
{[%clk 0:00:24.1]} 32... Rc3 {[%clk 0:02:06.5]} 33. Qd2 {[%clk 0:00:19.8]} 33...
Qb6+ {[%clk 0:02:06.7]} 34. Kh1 {[%clk 0:00:18.5]} 34... Qb5 {[%clk 0:02:07]}
35. Bb2 {[%clk 0:00:17.4]} 35... Rb3 {[%clk 0:02:06.1]} 36. Bxg7 {[%clk
0:00:17.1]} 36... Kxg7 {[%clk 0:02:07]} 37. Rc1 {[%clk 0:00:13.5]} 37... f6
{[%clk 0:02:02]} 38. Qa2 {[%clk 0:00:04.4]} 38... Qd3 {[%clk 0:01:57.9]} 39. h3
{[%clk 0:00:04.9]} 39... Rxa3 {[%clk 0:01:57.8]} 40. Qb2 {[%clk 0:00:04.5]}
40... Rb3 {[%clk 0:01:57.3]} 41. Qa2 {[%clk 0:00:04.7]} 41... Rxb4 {[%clk
0:01:50.7]} 42. Ra1 {[%clk 0:00:04.7]} 42... h4 {[%clk 0:01:43.7]} 43. Kh2
{[%clk 0:00:04.5]} 43... Qe3 {[%clk 0:01:42.9]} 44. Kh1 {[%clk 0:00:04.5]} 44...
Kh6 {[%clk 0:01:41.3]} 45. Kh2 {[%clk 0:00:04.3]} 45... Kg5 {[%clk 0:01:41.3]}
46. Kh1 {[%clk 0:00:04.4]} 46... Kf4 {[%clk 0:01:41.7]} 47. Kh2 {[%clk
0:00:04.5]} 47... Kg5 {[%clk 0:01:40.4]} 48. Kh1 {[%clk 0:00:04.1]} 48... Rd4
{[%clk 0:01:40.7]} 49. Kh2 {[%clk 0:00:03.5]} 49... Rd2 {[%clk 0:01:40.8]} 50.
Qxa4 {[%clk 0:00:03.4]} 50... Qf2 {[%clk 0:01:40.3]} 51. Rg1 {[%clk 0:00:03.2]}
51... Qxf3 {[%clk 0:01:30.1]} 52. e5 {[%clk 0:00:01.7]} 52... dxe5 {[%clk
0:01:16.9]} 53. Qb4 {[%clk 0:00:01.7]} 53... Qf4+ {[%clk 0:01:11.4]} 54. Kh1
{[%clk 0:00:01.2]} 54... Qxb4 {[%clk 0:00:05.9]} 0-1

[Event "*** SCC Grand Prix: Titled Tuesday Blitz"]
[Site "Chess.com"]
[Date "2020.07.14"]
[Round "8"]
[White "blitzking1729"]
[Black "GregShahade"]
[Result "1/2-1/2"]
[WhiteElo "2594"]
[BlackElo "2724"]
[TimeControl "180+1"]
[EndTime "11:37:26 PDT"]
[Termination "Game drawn by repetition"]

1. d4 {[%clk 0:03:00.9]} 1... Nf6 {[%clk 0:02:59.9]} 2. Bg5 {[%clk 0:02:57.7]}
2... c5 {[%clk 0:02:59.5]} 3. Nc3 {[%clk 0:02:55.5]} 3... d5 {[%clk 0:02:56.2]}
4. e3 {[%clk 0:02:52.3]} 4... Nc6 {[%clk 0:02:52.9]} 5. Bxf6 {[%clk 0:02:49.4]}
5... exf6 {[%clk 0:02:52.2]} 6. dxc5 {[%clk 0:02:48.8]} 6... Be6 {[%clk
0:02:48.5]} 7. Nf3 {[%clk 0:02:42.3]} 7... Bxc5 {[%clk 0:02:48.4]} 8. Bb5 {[%clk
0:02:41.7]} 8... O-O {[%clk 0:02:39.9]} 9. O-O {[%clk 0:02:40.8]} 9... d4 {[%clk
0:02:28.4]} 10. Na4 {[%clk 0:02:30.1]} 10... Be7 {[%clk 0:02:02.6]} 11. Bxc6
{[%clk 0:02:28]} 11... bxc6 {[%clk 0:02:02.2]} 12. exd4 {[%clk 0:02:27.2]} 12...
Qa5 {[%clk 0:01:59.1]} 13. Nc3 {[%clk 0:02:22.7]} 13... Rfd8 {[%clk 0:01:56.6]}
14. Re1 {[%clk 0:02:14.9]} 14... Rab8 {[%clk 0:01:55.9]} 15. Qc1 {[%clk
0:01:57.3]} 15... Bb4 {[%clk 0:01:52]} 16. Re3 {[%clk 0:01:54.9]} 16... Bg4
{[%clk 0:01:50.5]} 17. a3 {[%clk 0:01:52.6]} 17... Bd6 {[%clk 0:01:32.7]} 18.
Ne2 {[%clk 0:01:41.8]} 18... Bxf3 {[%clk 0:01:08.2]} 19. Rxf3 {[%clk 0:01:38.5]}
19... Qb5 {[%clk 0:01:08.5]} 20. Ng3 {[%clk 0:01:25.5]} 20... Qxb2 {[%clk
0:01:07.5]} 21. Qxb2 {[%clk 0:01:24.9]} 21... Rxb2 {[%clk 0:01:08.4]} 22. Rc3
{[%clk 0:01:24.4]} 22... Rc8 {[%clk 0:00:51]} 23. Nf5 {[%clk 0:01:21.5]} 23...
Bf8 {[%clk 0:00:50.5]} 24. d5 {[%clk 0:01:20.3]} 24... c5 {[%clk 0:00:47.9]} 25.
Rd1 {[%clk 0:01:16.2]} 25... g6 {[%clk 0:00:43.9]} 26. Ne3 {[%clk 0:01:14.7]}
26... Rd8 {[%clk 0:00:42.6]} 27. Nc4 {[%clk 0:01:13.1]} 27... Rb7 {[%clk
0:00:42.1]} 28. d6 {[%clk 0:01:12.6]} 28... f5 {[%clk 0:00:40.7]} 29. Rcd3
{[%clk 0:01:12.2]} 29... Rbd7 {[%clk 0:00:35.7]} 30. g3 {[%clk 0:01:08.5]} 30...
f6 {[%clk 0:00:34.1]} 31. Rd5 {[%clk 0:01:07.2]} 31... Rc8 {[%clk 0:00:29.5]}
32. f4 {[%clk 0:01:06.9]} 32... Kf7 {[%clk 0:00:28.9]} 33. Kf2 {[%clk
0:01:06.1]} 33... Rc6 {[%clk 0:00:28.3]} 34. R1d3 {[%clk 0:01:01.3]} 34... Ke6
{[%clk 0:00:28.4]} 35. Rd2 {[%clk 0:00:38.4]} 35... h5 {[%clk 0:00:26.2]} 36.
R5d3 {[%clk 0:00:37.5]} 36... Ra6 {[%clk 0:00:25.5]} 37. Re2+ {[%clk 0:00:33.4]}
37... Kf7 {[%clk 0:00:25.2]} 38. Red2 {[%clk 0:00:29.7]} 38... Ra4 {[%clk
0:00:25]} 39. Ne3 {[%clk 0:00:24]} 39... c4 {[%clk 0:00:23.9]} 40. Rd4 {[%clk
0:00:18.8]} 40... Rxa3 {[%clk 0:00:24.1]} 41. Nxc4 {[%clk 0:00:18.2]} 41... Ra6
{[%clk 0:00:24]} 42. R4d3 {[%clk 0:00:16.1]} 42... Rc6 {[%clk 0:00:24.2]} 43.
Rd4 {[%clk 0:00:14.9]} 43... Ke6 {[%clk 0:00:21.6]} 44. Re2+ {[%clk 0:00:14.3]}
44... Kf7 {[%clk 0:00:21.8]} 45. Red2 {[%clk 0:00:14.6]} 45... Rc5 {[%clk
0:00:22.3]} 46. Ke1 {[%clk 0:00:13.1]} 46... a5 {[%clk 0:00:22.5]} 47. Kd1
{[%clk 0:00:12]} 47... a4 {[%clk 0:00:22.4]} 48. Nb6 {[%clk 0:00:11.9]} 48...
Rd8 {[%clk 0:00:17.3]} 49. Nxa4 {[%clk 0:00:11.9]} 49... Ra5 {[%clk 0:00:17.5]}
50. d7 {[%clk 0:00:11.8]} 50... Ra7 {[%clk 0:00:17.3]} 51. Nc3 {[%clk
0:00:10.3]} 51... Bc5 {[%clk 0:00:16.9]} 52. Rd5 {[%clk 0:00:10.1]} 52... Bb4
{[%clk 0:00:17.2]} 53. R2d3 {[%clk 0:00:09.5]} 53... Bxc3 {[%clk 0:00:17.4]} 54.
Rxc3 {[%clk 0:00:09.8]} 54... Raxd7 {[%clk 0:00:18.2]} 55. Rxd7+ {[%clk
0:00:09.2]} 55... Rxd7+ {[%clk 0:00:19.1]} 56. Ke2 {[%clk 0:00:09]} 56... Ke6
{[%clk 0:00:19.1]} 57. Rc6+ {[%clk 0:00:09]} 57... Ke7 {[%clk 0:00:18]} 58. c4
{[%clk 0:00:08]} 58... Ra7 {[%clk 0:00:18]} 59. Ke3 {[%clk 0:00:05.7]} 59... Ra2
{[%clk 0:00:17.5]} 60. h4 {[%clk 0:00:05.9]} 60... Ra3+ {[%clk 0:00:17.9]} 61.
Kf2 {[%clk 0:00:06.1]} 61... Ra2+ {[%clk 0:00:18]} 62. Kf3 {[%clk 0:00:06.3]}
62... Ra3+ {[%clk 0:00:18.7]} 63. Kg2 {[%clk 0:00:05.7]} 63... Ra2+ {[%clk
0:00:19.3]} 64. Kf3 {[%clk 0:00:05.1]} 64... Ra3+ {[%clk 0:00:19.5]} 65. Kf2
{[%clk 0:00:05.5]} 65... Ra2+ {[%clk 0:00:19.9]} 66. Kf3 {[%clk 0:00:06.1]}
1/2-1/2